[Event "*** Titled Tuesday 3|2 Blitz (Early)"]
[Site "Chess.com"]
[Date "2016.12.06"]
[Round "6"]
[White "Wolverine_master"]
[Black "Morpheus4"]
[Result "1-0"]
[WhiteElo "2032"]
[BlackElo "1936"]
[TimeControl "180+2"]
[EndTime "12:17:53 PST"]
[Termination "Wolverine_master won on time"]

1. e4 {[%clk 0:03:02]} 1... c5 {[%clk 0:02:56.6]} 2. Nf3 {[%clk 0:02:54.2]} 2...
d6 {[%clk 0:02:57]} 3. d4 {[%clk 0:02:55.5]} 3... cxd4 {[%clk 0:02:57.2]} 4.
Nxd4 {[%clk 0:02:57.4]} 4... Nf6 {[%clk 0:02:58.2]} 5. Nc3 {[%clk 0:02:54]} 5...
a6 {[%clk 0:02:57.9]} 6. Bg5 {[%clk 0:02:54.2]} 6... e6 {[%clk 0:02:58.2]} 7. f4
{[%clk 0:02:55.3]} 7... Be7 {[%clk 0:02:56.8]} 8. Qf3 {[%clk 0:02:56.7]} 8...
Qc7 {[%clk 0:02:55.1]} 9. O-O-O {[%clk 0:02:57.1]} 9... Nbd7 {[%clk 0:02:50.8]}
10. g4 {[%clk 0:02:57.8]} 10... Rb8 {[%clk 0:02:45.8]} 11. Bxf6 {[%clk 0:02:58]}
11... gxf6 {[%clk 0:02:45]} 12. h4 {[%clk 0:02:31.9]} 12... b5 {[%clk
0:02:39.1]} 13. g5 {[%clk 0:02:28.7]} 13... b4 {[%clk 0:02:33]} 14. Nce2 {[%clk
0:02:28.8]} 14... Bb7 {[%clk 0:02:24.4]} 15. Bh3 {[%clk 0:02:20.4]} 15... Nc5
{[%clk 0:02:19.4]} 16. Ng3 {[%clk 0:02:21.2]} 16... f5 {[%clk 0:02:16.1]} 17.
Qh5 {[%clk 0:02:14.9]} 17... d5 {[%clk 0:01:51.6]} 18. exf5 {[%clk 0:02:10.7]}
18... Qxf4+ {[%clk 0:01:42.2]} 19. Kb1 {[%clk 0:02:11.7]} 19... e5 {[%clk
0:01:13.6]} 20. Nge2 {[%clk 0:01:51.8]} 20... Qe4 {[%clk 0:00:58.3]} 21. Ne6
{[%clk 0:01:31.3]} 21... Rc8 {[%clk 0:00:40.5]} 22. Ng3 {[%clk 0:01:16.9]} 22...
Qc4 {[%clk 0:00:38.9]} 23. Bf1 {[%clk 0:01:15.3]} 23... Nd3 {[%clk 0:00:10.5]}
24. Bxd3 {[%clk 0:01:02.2]} 24... Qc6 {[%clk 0:00:02.6]} 25. g6 {[%clk
0:00:59.8]} 1-0

[Event "*** Titled Tuesday 3|2 Blitz (Early)"]
[Site "Chess.com"]
[Date "2016.12.06"]
[Round "6"]
[White "SCIM"]
[Black "Tash_Boy"]
[Result "0-1"]
[WhiteElo "2300"]
[BlackElo "2474"]
[TimeControl "180+2"]
[EndTime "12:18:06 PST"]
[Termination "Tash_Boy won by checkmate"]

1. e4 {[%clk 0:03:02]} 1... c5 {[%clk 0:02:59.8]} 2. Nf3 {[%clk 0:03:02.2]} 2...
e6 {[%clk 0:03:00.4]} 3. g3 {[%clk 0:03:01.3]} 3... d5 {[%clk 0:02:52.4]} 4.
exd5 {[%clk 0:02:55.4]} 4... exd5 {[%clk 0:02:53.3]} 5. d4 {[%clk 0:02:55.9]}
5... Nc6 {[%clk 0:02:53.1]} 6. Bg2 {[%clk 0:02:54.1]} 6... Nf6 {[%clk
0:02:54.7]} 7. O-O {[%clk 0:02:49.7]} 7... Be7 {[%clk 0:02:56.2]} 8. dxc5 {[%clk
0:02:49.6]} 8... O-O {[%clk 0:02:53.9]} 9. Bg5 {[%clk 0:02:43.2]} 9... Bxc5
{[%clk 0:02:52.5]} 10. Nc3 {[%clk 0:02:41]} 10... Be6 {[%clk 0:02:51.7]} 11. Nb5
{[%clk 0:02:26.5]} 11... h6 {[%clk 0:02:42.1]} 12. Bf4 {[%clk 0:02:24.9]} 12...
Rc8 {[%clk 0:02:40.1]} 13. Nbd4 {[%clk 0:02:20.2]} 13... Bg4 {[%clk 0:02:40.5]}
14. c3 {[%clk 0:02:14]} 14... Qb6 {[%clk 0:02:41.1]} 15. Nb3 {[%clk 0:02:10]}
15... Be7 {[%clk 0:02:34.3]} 16. Be3 {[%clk 0:02:01.5]} 16... Qc7 {[%clk
0:02:31.8]} 17. Qd2 {[%clk 0:01:56.4]} 17... Rfe8 {[%clk 0:02:23.1]} 18. Rfe1
{[%clk 0:01:55.2]} 18... Rcd8 {[%clk 0:02:23.2]} 19. Nfd4 {[%clk 0:01:49.2]}
19... Ne4 {[%clk 0:02:14]} 20. Qc2 {[%clk 0:01:48.1]} 20... Bc8 {[%clk
0:02:00.2]} 21. Bf4 {[%clk 0:01:23]} 21... Bd6 {[%clk 0:01:57.7]} 22. Nb5 {[%clk
0:01:21.7]} 22... Qb8 {[%clk 0:01:46]} 23. Bxe4 {[%clk 0:01:11.9]} 23... Bxf4
{[%clk 0:01:24.2]} 24. Bh7+ {[%clk 0:01:09.5]} 24... Kh8 {[%clk 0:01:25.1]} 25.
gxf4 {[%clk 0:01:09.9]} 25... Qxf4 {[%clk 0:01:26.4]} 26. N5d4 {[%clk
0:00:40.7]} 26... Bh3 {[%clk 0:01:09.7]} 27. Kh1 {[%clk 0:00:35.4]} 27... Ne5
{[%clk 0:01:00.6]} 28. Bf5 {[%clk 0:00:23.8]} 28... Nf3 {[%clk 0:00:58.6]} 29.
Rxe8+ {[%clk 0:00:17.6]} 29... Rxe8 {[%clk 0:00:58.8]} 30. Bxh3 {[%clk
0:00:13.1]} 30... Qxh2# {[%clk 0:00:58.4]} 0-1

[Event "*** Titled Tuesday 3|2 Blitz (Early)"]
[Site "Chess.com"]
[Date "2016.12.06"]
[Round "6"]
[White "Izoria123"]
[Black "Salem-AR"]
[Result "1-0"]
[WhiteElo "2577"]
[BlackElo "2677"]
[TimeControl "180+2"]
[EndTime "12:18:34 PST"]
[Termination "Izoria123 won by resignation"]

1. Nf3 {[%clk 0:03:02]} 1... c5 {[%clk 0:03:00.5]} 2. e4 {[%clk 0:03:02.3]} 2...
d6 {[%clk 0:03:01.3]} 3. c3 {[%clk 0:03:02.9]} 3... Nf6 {[%clk 0:03:02.2]} 4.
Be2 {[%clk 0:03:04.2]} 4... Nbd7 {[%clk 0:03:02.6]} 5. d3 {[%clk 0:03:04.9]}
5... b6 {[%clk 0:03:03.2]} 6. O-O {[%clk 0:03:05.2]} 6... Bb7 {[%clk 0:03:04.8]}
7. Nbd2 {[%clk 0:03:05.9]} 7... e5 {[%clk 0:03:04]} 8. d4 {[%clk 0:02:55.9]}
8... Be7 {[%clk 0:02:56]} 9. d5 {[%clk 0:02:54.8]} 9... a6 {[%clk 0:02:55]} 10.
c4 {[%clk 0:02:53.1]} 10... O-O {[%clk 0:02:53.5]} 11. b3 {[%clk 0:02:51.8]}
11... Bc8 {[%clk 0:02:42.4]} 12. Ne1 {[%clk 0:02:44.3]} 12... g6 {[%clk
0:02:40.4]} 13. Nd3 {[%clk 0:02:45.2]} 13... b5 {[%clk 0:02:36.3]} 14. Bb2
{[%clk 0:02:44.9]} 14... Re8 {[%clk 0:02:31.1]} 15. Qc2 {[%clk 0:02:33.7]} 15...
Bf8 {[%clk 0:02:29.1]} 16. Rae1 {[%clk 0:02:32.6]} 16... Rb8 {[%clk 0:02:26.8]}
17. Bc3 {[%clk 0:02:32.6]} 17... Bg7 {[%clk 0:02:25.3]} 18. g3 {[%clk
0:02:30.7]} 18... Nb6 {[%clk 0:02:24.8]} 19. Bf3 {[%clk 0:02:29.4]} 19... Bd7
{[%clk 0:02:21.7]} 20. Bg2 {[%clk 0:02:27.3]} 20... bxc4 {[%clk 0:02:21.9]} 21.
bxc4 {[%clk 0:02:21.1]} 21... Na4 {[%clk 0:02:19.3]} 22. Ba1 {[%clk 0:02:21.6]}
22... h5 {[%clk 0:02:15.5]} 23. f4 {[%clk 0:02:21.1]} 23... exf4 {[%clk
0:02:11.3]} 24. gxf4 {[%clk 0:02:21.5]} 24... h4 {[%clk 0:02:04.7]} 25. e5
{[%clk 0:02:16.9]} 25... h3 {[%clk 0:01:38]} 26. Bf3 {[%clk 0:02:16]} 26... dxe5
{[%clk 0:01:29]} 27. fxe5 {[%clk 0:01:58.9]} 27... Nh7 {[%clk 0:01:29.9]} 28.
Ne4 {[%clk 0:01:22.7]} 28... Ng5 {[%clk 0:01:29.7]} 29. Nd6 {[%clk 0:01:21.9]}
29... Rf8 {[%clk 0:01:03.5]} 30. Kh1 {[%clk 0:01:18.3]} 30... Nxf3 {[%clk
0:00:57.2]} 31. Rxf3 {[%clk 0:01:18.9]} 31... Qh4 {[%clk 0:00:59.1]} 32. Ref1
{[%clk 0:01:15]} 32... Bg4 {[%clk 0:00:46.4]} 33. Rf4 {[%clk 0:01:10.9]} 33...
Qh5 {[%clk 0:00:43.1]} 34. Ne4 {[%clk 0:01:06.8]} 34... Be2 {[%clk 0:00:36]} 35.
Ng3 {[%clk 0:01:04.9]} 35... Bxd3 {[%clk 0:00:37.3]} 36. Qxd3 {[%clk 0:01:05.5]}
36... Qg5 {[%clk 0:00:37.6]} 37. Qf3 {[%clk 0:01:01.8]} 37... Bxe5 {[%clk
0:00:22]} 38. Rxf7 {[%clk 0:01:00.4]} 38... Rxf7 {[%clk 0:00:22]} 39. Qxf7+
{[%clk 0:01:02.3]} 39... Kh8 {[%clk 0:00:23.3]} 40. Qc7 {[%clk 0:01:00.4]} 40...
Re8 {[%clk 0:00:21.9]} 41. Rf7 {[%clk 0:00:53.6]} 41... Qc1+ {[%clk 0:00:12.2]}
42. Nf1 {[%clk 0:00:54.7]} 42... Qb1 {[%clk 0:00:03.1]} 1-0

[Event "*** Titled Tuesday 3|2 Blitz (Early)"]
[Site "Chess.com"]
[Date "2016.12.06"]
[Round "6"]
[White "Lector118"]
[Black "fireheart92"]
[Result "0-1"]
[WhiteElo "2330"]
[BlackElo "2540"]
[TimeControl "180+2"]
[EndTime "12:18:43 PST"]
[Termination "fireheart92 won by resignation"]

1. d4 {[%clk 0:03:00.4]} 1... Nf6 {[%clk 0:03:00.6]} 2. c4 {[%clk 0:03:01.9]}
2... g6 {[%clk 0:03:01.1]} 3. Nc3 {[%clk 0:03:02.4]} 3... Bg7 {[%clk 0:03:02.3]}
4. e4 {[%clk 0:03:03.6]} 4... d6 {[%clk 0:03:03.8]} 5. Nf3 {[%clk 0:03:05.2]}
5... O-O {[%clk 0:03:04.7]} 6. Be2 {[%clk 0:03:06.9]} 6... e5 {[%clk 0:03:06]}
7. O-O {[%clk 0:03:08.2]} 7... Nc6 {[%clk 0:03:07.3]} 8. d5 {[%clk 0:03:09.5]}
8... Ne7 {[%clk 0:03:08.6]} 9. Ne1 {[%clk 0:03:10.9]} 9... Nd7 {[%clk
0:03:08.7]} 10. Nd3 {[%clk 0:03:06.7]} 10... f5 {[%clk 0:03:09.7]} 11. Bd2
{[%clk 0:03:07.9]} 11... Nf6 {[%clk 0:03:10]} 12. f3 {[%clk 0:03:09.3]} 12... f4
{[%clk 0:03:11.4]} 13. c5 {[%clk 0:03:09.8]} 13... g5 {[%clk 0:03:12.1]} 14.
cxd6 {[%clk 0:03:07]} 14... cxd6 {[%clk 0:03:12.9]} 15. Nf2 {[%clk 0:03:08.5]}
15... Ng6 {[%clk 0:03:09]} 16. Qc2 {[%clk 0:03:08.5]} 16... Rf7 {[%clk
0:03:09.6]} 17. Rfc1 {[%clk 0:03:08.8]} 17... h5 {[%clk 0:03:08.9]} 18. Nb5
{[%clk 0:03:07.8]} 18... g4 {[%clk 0:02:52.2]} 19. Nc7 {[%clk 0:03:04.1]} 19...
g3 {[%clk 0:02:45.5]} 20. Nxa8 {[%clk 0:02:25.8]} 20... gxf2+ {[%clk 0:02:45.4]}
21. Kxf2 {[%clk 0:02:27.7]} 21... Bg4 {[%clk 0:01:43.3]} 22. Nc7 {[%clk
0:02:14.3]} 22... Nxe4+ {[%clk 0:00:47.8]} 23. Qxe4 {[%clk 0:02:14]} 23... Bf5
{[%clk 0:00:49.1]} 24. Qc4 {[%clk 0:02:14.7]} 24... e4 {[%clk 0:00:49.9]} 25.
fxe4 {[%clk 0:02:06.6]} 25... Ne5 {[%clk 0:00:50.9]} 26. Qc2 {[%clk 0:01:49.4]}
26... Qh4+ {[%clk 0:00:34.6]} 27. Kg1 {[%clk 0:01:50.3]} 27... f3 {[%clk
0:00:31.2]} 28. Be1 {[%clk 0:00:58.1]} 28... Qg5 {[%clk 0:00:26.3]} 29. Bf1
{[%clk 0:00:52.9]} 29... fxg2 {[%clk 0:00:22.2]} 30. Qxg2 {[%clk 0:00:50.9]}
30... Bh3 {[%clk 0:00:23.2]} 31. Bg3 {[%clk 0:00:45.2]} 31... Bxg2 {[%clk
0:00:19.4]} 32. Bxg2 {[%clk 0:00:45.7]} 32... Nd3 {[%clk 0:00:20.3]} 33. Rc2
{[%clk 0:00:38.6]} 33... h4 {[%clk 0:00:21.3]} 34. Bxd6 {[%clk 0:00:31.5]} 34...
Bd4+ {[%clk 0:00:21.7]} 35. Kh1 {[%clk 0:00:30.5]} 35... Nf2+ {[%clk 0:00:22.5]}
36. Rxf2 {[%clk 0:00:31.4]} 36... Rxf2 {[%clk 0:00:24.4]} 37. Bh3 {[%clk
0:00:28.2]} 37... Qe3 {[%clk 0:00:21.5]} 38. Rg1+ {[%clk 0:00:27.3]} 38... Kh7
{[%clk 0:00:22.7]} 39. Bf5+ {[%clk 0:00:28.2]} 39... Rxf5 {[%clk 0:00:23.6]} 0-1

[Event "*** Titled Tuesday 3|2 Blitz (Early)"]
[Site "Chess.com"]
[Date "2016.12.06"]
[Round "6"]
[White "VSERGUEI"]
[Black "platy3"]
[Result "0-1"]
[WhiteElo "2605"]
[BlackElo "2703"]
[TimeControl "180+2"]
[EndTime "12:18:55 PST"]
[Termination "platy3 won on time"]

1. d4 {[%clk 0:03:02]} 1... Nf6 {[%clk 0:02:58.3]} 2. c4 {[%clk 0:03:02.9]} 2...
e6 {[%clk 0:02:59.9]} 3. Nc3 {[%clk 0:03:04]} 3... Bb4 {[%clk 0:03:01.3]} 4. f3
{[%clk 0:03:05.1]} 4... c5 {[%clk 0:03:02.8]} 5. d5 {[%clk 0:03:05.9]} 5... O-O
{[%clk 0:03:04.4]} 6. e4 {[%clk 0:03:06.6]} 6... b5 {[%clk 0:03:06]} 7. Nh3
{[%clk 0:03:07]} 7... bxc4 {[%clk 0:03:05.5]} 8. Bxc4 {[%clk 0:03:07]} 8... Nxd5
{[%clk 0:03:06.6]} 9. Bxd5 {[%clk 0:03:06.3]} 9... exd5 {[%clk 0:02:57]} 10.
Qxd5 {[%clk 0:03:06.6]} 10... Ba6 {[%clk 0:02:52.8]} 11. Bg5 {[%clk 0:02:25.1]}
11... Qa5 {[%clk 0:02:52.9]} 12. Kf2 {[%clk 0:02:04.9]} 12... Nc6 {[%clk
0:02:54.1]} 13. Rhc1 {[%clk 0:02:00.3]} 13... Rfe8 {[%clk 0:02:40.2]} 14. a3
{[%clk 0:01:50.9]} 14... Bxc3 {[%clk 0:02:36.4]} 15. Rxc3 {[%clk 0:01:50.7]}
15... Re5 {[%clk 0:02:16.3]} 16. Qxd7 {[%clk 0:01:13.7]} 16... Qb5 {[%clk
0:02:17.2]} 17. Rac1 {[%clk 0:01:06.7]} 17... h6 {[%clk 0:01:57.9]} 18. Bf4
{[%clk 0:00:57.3]} 18... Rd8 {[%clk 0:01:44.9]} 19. Qxd8+ {[%clk 0:00:56.9]}
19... Nxd8 {[%clk 0:01:46.8]} 20. Bxe5 {[%clk 0:00:57.8]} 20... Qxb2+ {[%clk
0:01:48.4]} 21. Kg1 {[%clk 0:00:55.3]} 21... Nc6 {[%clk 0:01:39.6]} 22. f4
{[%clk 0:00:25.3]} 22... c4 {[%clk 0:00:55.2]} 23. Nf2 {[%clk 0:00:20.6]} 23...
Qb6 {[%clk 0:00:53.1]} 24. R3c2 {[%clk 0:00:11]} 24... Nxe5 {[%clk 0:00:48.3]}
25. fxe5 {[%clk 0:00:11.1]} 25... Qc5 {[%clk 0:00:47.5]} 26. e6 {[%clk
0:00:12.4]} 26... fxe6 {[%clk 0:00:47.7]} 27. h3 {[%clk 0:00:12.7]} 27... Qxa3
{[%clk 0:00:45.7]} 28. Ng4 {[%clk 0:00:11.8]} 28... Qc5+ {[%clk 0:00:43.9]} 29.
Kh1 {[%clk 0:00:12.2]} 29... Bb5 {[%clk 0:00:39.6]} 30. Rd1 {[%clk 0:00:11.3]}
30... Ba4 {[%clk 0:00:33.7]} 31. Rd8+ {[%clk 0:00:11]} 31... Kh7 {[%clk
0:00:35]} 32. Rcd2 {[%clk 0:00:08.2]} 32... c3 {[%clk 0:00:31.3]} 33. R2d7
{[%clk 0:00:02.5]} 33... Bxd7 {[%clk 0:00:31.3]} 34. Rxd7 {[%clk 0:00:03.2]}
34... c2 {[%clk 0:00:27.9]} 35. Nf6+ {[%clk 0:00:03.8]} 35... Kg6 {[%clk
0:00:29.2]} 36. Ne8 {[%clk 0:00:04.7]} 36... c1=Q+ {[%clk 0:00:30.3]} 37. Kh2
{[%clk 0:00:06]} 37... Qf4+ {[%clk 0:00:29.9]} 0-1

[Event "*** Titled Tuesday 3|2 Blitz (Early)"]
[Site "Chess.com"]
[Date "2016.12.06"]
[Round "6"]
[White "joppie2"]
[Black "sorito"]
[Result "1-0"]
[WhiteElo "2547"]
[BlackElo "2361"]
[TimeControl "180+2"]
[EndTime "12:18:56 PST"]
[Termination "joppie2 won by checkmate"]

1. e4 {[%clk 0:03:02]} 1... c5 {[%clk 0:03:00.1]} 2. Nf3 {[%clk 0:02:59]} 2...
d6 {[%clk 0:03:00.9]} 3. d4 {[%clk 0:03:00.5]} 3... cxd4 {[%clk 0:03:02.4]} 4.
Nxd4 {[%clk 0:03:02.4]} 4... Nf6 {[%clk 0:03:02.7]} 5. Nc3 {[%clk 0:03:04]} 5...
a6 {[%clk 0:03:04.1]} 6. h3 {[%clk 0:03:05.1]} 6... e6 {[%clk 0:03:01.9]} 7. g4
{[%clk 0:03:03.7]} 7... d5 {[%clk 0:03:02.9]} 8. exd5 {[%clk 0:03:04.8]} 8...
Nxd5 {[%clk 0:03:03.7]} 9. Nde2 {[%clk 0:03:06.5]} 9... Bb4 {[%clk 0:02:55.5]}
10. Bg2 {[%clk 0:03:06.1]} 10... O-O {[%clk 0:02:50.9]} 11. O-O {[%clk
0:03:03.2]} 11... Nxc3 {[%clk 0:02:42.3]} 12. Nxc3 {[%clk 0:03:03]} 12... Qc7
{[%clk 0:02:13.2]} 13. Qd4 {[%clk 0:03:02.3]} 13... Bxc3 {[%clk 0:02:02.5]} 14.
Qxc3 {[%clk 0:03:02.6]} 14... Qxc3 {[%clk 0:01:40.2]} 15. bxc3 {[%clk
0:03:03.4]} 15... Nc6 {[%clk 0:01:41.7]} 16. Rb1 {[%clk 0:03:02.2]} 16... e5
{[%clk 0:01:41.9]} 17. Ba3 {[%clk 0:03:02.1]} 17... Re8 {[%clk 0:01:42.6]} 18.
Rfd1 {[%clk 0:03:02.8]} 18... h6 {[%clk 0:01:40.8]} 19. Bd5 {[%clk 0:03:00.4]}
19... Be6 {[%clk 0:01:21.8]} 20. Bxe6 {[%clk 0:02:59.9]} 20... Rxe6 {[%clk
0:01:20.9]} 21. Rxb7 {[%clk 0:03:01.8]} 21... e4 {[%clk 0:01:11.7]} 22. Rd6
{[%clk 0:02:56.8]} 22... Rxd6 {[%clk 0:01:10.3]} 23. Bxd6 {[%clk 0:02:57.4]}
23... Rd8 {[%clk 0:01:10.5]} 24. Bf4 {[%clk 0:02:58.2]} 24... g5 {[%clk
0:01:05.2]} 25. Be3 {[%clk 0:02:59.3]} 25... Ne5 {[%clk 0:01:06]} 26. Kg2 {[%clk
0:02:59.3]} 26... Nf3 {[%clk 0:01:06.6]} 27. Rb4 {[%clk 0:02:49.9]} 27... Ne1+
{[%clk 0:00:40.2]} 28. Kg3 {[%clk 0:02:48.4]} 28... Nxc2 {[%clk 0:00:41.7]} 29.
Rxe4 {[%clk 0:02:37.8]} 29... Rd3 {[%clk 0:00:42.5]} 30. c4 {[%clk 0:02:37.1]}
30... Ra3 {[%clk 0:00:41.4]} 31. c5 {[%clk 0:02:36.3]} 31... Rxa2 {[%clk
0:00:42.1]} 32. c6 {[%clk 0:02:07.1]} 32... Nxe3 {[%clk 0:00:42.7]} 33. c7
{[%clk 0:02:05.6]} 33... Rc2 {[%clk 0:00:38.8]} 34. Re8+ {[%clk 0:02:06.3]}
34... Kg7 {[%clk 0:00:38.5]} 35. c8=Q {[%clk 0:02:07.9]} 35... Rxc8 {[%clk
0:00:36]} 36. Rxc8 {[%clk 0:02:09.8]} 36... Nd5 {[%clk 0:00:36.9]} 37. Rc6
{[%clk 0:02:06.1]} 37... Nb4 {[%clk 0:00:37.6]} 38. Rb6 {[%clk 0:02:06.4]} 38...
a5 {[%clk 0:00:38.8]} 39. Rb5 {[%clk 0:02:04.4]} 39... Nc6 {[%clk 0:00:39.5]}
40. Rc5 {[%clk 0:02:05.6]} 40... Nb4 {[%clk 0:00:38.8]} 41. Rxa5 {[%clk
0:02:06.7]} 41... Nd3 {[%clk 0:00:40.2]} 42. Rf5 {[%clk 0:02:04.6]} 42... f6
{[%clk 0:00:41]} 43. Kf3 {[%clk 0:02:01.9]} 43... Kg6 {[%clk 0:00:41.8]} 44. Ke4
{[%clk 0:02:00.7]} 44... Ne1 {[%clk 0:00:40.9]} 45. Ra5 {[%clk 0:01:55.6]} 45...
Ng2 {[%clk 0:00:41.8]} 46. Ra3 {[%clk 0:01:50.7]} 46... Nh4 {[%clk 0:00:33.9]}
47. Kd5 {[%clk 0:01:48.5]} 47... h5 {[%clk 0:00:32.6]} 48. Ke6 {[%clk
0:01:47.3]} 48... hxg4 {[%clk 0:00:32.3]} 49. hxg4 {[%clk 0:01:47.9]} 49... Ng2
{[%clk 0:00:33.2]} 50. Ke7 {[%clk 0:01:40.3]} 50... Nf4 {[%clk 0:00:34.4]} 51.
Ra6 {[%clk 0:01:39.4]} 51... Nd5+ {[%clk 0:00:35.9]} 52. Kf8 {[%clk 0:01:38]}
52... Nf4 {[%clk 0:00:34.3]} 53. f3 {[%clk 0:01:35.5]} 53... Nd3 {[%clk
0:00:29.1]} 54. Ke7 {[%clk 0:01:33.9]} 54... Ne5 {[%clk 0:00:21]} 55. Rxf6+
{[%clk 0:01:34.1]} 55... Kg7 {[%clk 0:00:22.4]} 56. Rf5 {[%clk 0:01:35.6]} 56...
Ng6+ {[%clk 0:00:19.7]} 57. Ke6 {[%clk 0:01:34.7]} 57... Kh6 {[%clk 0:00:17.9]}
58. Kf6 {[%clk 0:01:33.6]} 58... Nh4 {[%clk 0:00:18.5]} 59. Rxg5 {[%clk
0:01:33.1]} 59... Nxf3 {[%clk 0:00:20]} 60. Rh5# {[%clk 0:01:34.4]} 1-0

[Event "*** Titled Tuesday 3|2 Blitz (Early)"]
[Site "Chess.com"]
[Date "2016.12.06"]
[Round "6"]
[White "Iball95"]
[Black "Cecile_Haussernot"]
[Result "1-0"]
[WhiteElo "2487"]
[BlackElo "2266"]
[TimeControl "180+2"]
[EndTime "12:19:13 PST"]
[Termination "Iball95 won by resignation"]

1. e4 {[%clk 0:03:02]} 1... c5 {[%clk 0:02:57.8]} 2. Nf3 {[%clk 0:03:02.7]} 2...
d6 {[%clk 0:02:58.6]} 3. Bb5+ {[%clk 0:03:03.3]} 3... Nd7 {[%clk 0:02:58.2]} 4.
d4 {[%clk 0:03:01.7]} 4... cxd4 {[%clk 0:02:50.9]} 5. Qxd4 {[%clk 0:03:03.6]}
5... a6 {[%clk 0:02:49.8]} 6. Bxd7+ {[%clk 0:03:04.4]} 6... Bxd7 {[%clk
0:02:50.9]} 7. c4 {[%clk 0:03:05.8]} 7... Nf6 {[%clk 0:02:50.8]} 8. Nc3 {[%clk
0:03:05.4]} 8... Bg4 {[%clk 0:02:17.7]} 9. O-O {[%clk 0:02:58.4]} 9... Bxf3
{[%clk 0:02:17.6]} 10. gxf3 {[%clk 0:03:00.3]} 10... e6 {[%clk 0:02:12.6]} 11.
Rd1 {[%clk 0:02:54.5]} 11... Nd7 {[%clk 0:02:11.5]} 12. Qe3 {[%clk 0:02:38.9]}
12... Ne5 {[%clk 0:01:48.6]} 13. b3 {[%clk 0:02:38.6]} 13... Be7 {[%clk
0:01:49.9]} 14. f4 {[%clk 0:02:38.4]} 14... Ng4 {[%clk 0:01:49.7]} 15. Qg3
{[%clk 0:02:37.7]} 15... h5 {[%clk 0:01:50.4]} 16. h3 {[%clk 0:02:34]} 16... Bh4
{[%clk 0:01:50.8]} 17. Qf3 {[%clk 0:02:28.9]} 17... Nxf2 {[%clk 0:00:58.6]} 18.
Rf1 {[%clk 0:02:26.3]} 18... g5 {[%clk 0:00:57.1]} 19. fxg5 {[%clk 0:02:16.7]}
19... Rg8 {[%clk 0:00:48.3]} 20. Rxf2 {[%clk 0:02:15.3]} 20... Bxf2+ {[%clk
0:00:49.2]} 21. Kxf2 {[%clk 0:02:12]} 21... Qa5 {[%clk 0:00:48]} 22. Bf4 {[%clk
0:02:05.3]} 22... O-O-O {[%clk 0:00:43.4]} 23. Rd1 {[%clk 0:02:05.6]} 23... Qc5+
{[%clk 0:00:33.7]} 24. Qe3 {[%clk 0:02:03]} 24... e5 {[%clk 0:00:33.5]} 25.
Qxc5+ {[%clk 0:01:58.7]} 25... dxc5 {[%clk 0:00:34.6]} 26. Rxd8+ {[%clk
0:01:47.3]} 26... Rxd8 {[%clk 0:00:35.5]} 27. Bxe5 {[%clk 0:01:47.5]} 27... Rd3
{[%clk 0:00:36.5]} 28. h4 {[%clk 0:01:41.4]} 28... Kd7 {[%clk 0:00:31.6]} 29.
Ne2 {[%clk 0:01:42.4]} 29... Rd2 {[%clk 0:00:30.2]} 30. a3 {[%clk 0:01:37.9]}
30... Ra2 {[%clk 0:00:27.8]} 31. a4 {[%clk 0:01:36.3]} 31... Ke6 {[%clk
0:00:29.2]} 32. Bf6 {[%clk 0:01:33.1]} 32... Rd2 {[%clk 0:00:19.9]} 33. Ke3
{[%clk 0:01:32]} 33... Rd1 {[%clk 0:00:19.9]} 34. Nf4+ {[%clk 0:01:33.1]} 34...
Kd7 {[%clk 0:00:20.7]} 35. e5 {[%clk 0:01:26]} 35... Re1+ {[%clk 0:00:19.5]} 36.
Kf3 {[%clk 0:01:25.5]} 36... Rb1 {[%clk 0:00:20.2]} 37. g6 {[%clk 0:01:15.8]}
37... Rxb3+ {[%clk 0:00:21.1]} 38. Ke4 {[%clk 0:01:15.7]} 38... fxg6 {[%clk
0:00:22.7]} 39. e6+ {[%clk 0:01:17]} 39... Kd6 {[%clk 0:00:21.5]} 40. e7 {[%clk
0:01:17.7]} 40... Kd7 {[%clk 0:00:22.1]} 41. Nxg6 {[%clk 0:01:03.6]} 41... Rb6
{[%clk 0:00:23.5]} 42. Kf5 {[%clk 0:01:03.5]} 42... Rd6 {[%clk 0:00:18.4]} 43.
Nf8+ {[%clk 0:00:59.6]} 43... Ke8 {[%clk 0:00:19.5]} 44. Ne6 {[%clk 0:00:50.2]}
44... Kf7 {[%clk 0:00:18.4]} 45. Nd8+ {[%clk 0:00:51.2]} 45... Ke8 {[%clk
0:00:18.4]} 46. Nxb7 {[%clk 0:00:50.7]} 46... Rd1 {[%clk 0:00:16.2]} 47. Ke6
{[%clk 0:00:47.5]} 47... Re1+ {[%clk 0:00:14.7]} 48. Be5 {[%clk 0:00:48.5]}
48... Rd1 {[%clk 0:00:10.9]} 49. Nd6+ {[%clk 0:00:48.1]} 49... Rxd6+ {[%clk
0:00:12.4]} 50. Kxd6 {[%clk 0:00:49.7]} 50... a5 {[%clk 0:00:14.1]} 51. Bg3
{[%clk 0:00:50.8]} 51... Kf7 {[%clk 0:00:15]} 52. Kd7 {[%clk 0:00:52.7]} 1-0